bitfinex-derivatives/quotes_SOLF0:USTF0_20250309
["timestamp","ask_amount","ask_price","bid_price","bid_amount"]
[1741522300026,0.05183649,135.0,134.99,7.4092]
[1741522300236,74.4118582,135.0,134.98,0.04904006]
[1741522300428,0.05183649,135.0,134.99,7.4092]
[1741522301629,0.05183649,135.0,134.98,7.45874006]
[1741522302230,0.05183649,135.0,134.98,0.04904006]
[1741522302427,74.36002171,134.99,134.98,0.04904006]
[1741522302831,89.23989937,134.99,134.98,7.45884006]
[1741522303227,0.05183649,135.0,134.98,0.04904006]
[1741522303432,0.05183649,135.0,134.99,7.4092]
[1741522303634,6.13829871,135.0,134.99,7.4092]
[1741522304137,6.13829871,135.0,134.98,0.04904006]
[1741522304138,6.13829871,135.0,134.98,7.45864006]
[1741522304334,6.10880316,134.99,134.98,0.04904006]
[1741522304726,6.10880316,134.99,134.98,7.45874006]
[1741522306131,6.10880316,134.99,134.98,0.04904006]
[1741522306335,15.87926223,134.99,134.98,0.04904006]
[1741522306634,21.83948775,134.99,134.98,7.45884006]
[1741522307035,12.07357446,134.99,134.98,7.45884006]
[1741522307732,5.96022552,134.99,134.98,7.45884006]
[1741522308036,0.05183649,135.0,134.99,7.4092]
[1741522308236,6.17000789,135.0,134.99,7.4092]
[1741522309230,6.17000789,135.0,134.98,0.04904006]
[1741522309536,15.93294921,134.99,134.98,0.04904006]
[1741522309937,6.12818527,134.99,134.98,7.45884006]
[1741522310141,8.527e-05,134.99,134.98,7.45884006]
[1741522310329,0.05183649,135.0,134.98,0.04904006]
[1741522310528,0.05183649,135.0,134.99,7.4092]
[1741522311832,3.649e-05,135.0,134.99,7.4092]
[1741522312641,3.649e-05,135.0,134.99,229.6092]
[1741522317237,3.649e-05,135.0,134.99,273.9492]
[1741522318342,89.23993586,135.0,134.98,0.04904006]
[1741522318642,74.36002171,134.99,134.98,0.04904006]
[1741522318943,80.37081795,134.99,134.98,0.04904006]
[1741522319144,95.25069561,134.99,134.98,0.04904006]
[1741522320043,95.25069561,134.99,134.98,7.45884006]
[1741522320845,6.01079624,134.99,134.98,7.45884006]
[1741522321140,84.07679043,134.99,134.87,81.67823112]
[1741522321343,26.41128671,134.98,134.88,222.18]
[1741522321544,74.36002171,134.89,134.87,81.67823112]
[1741522322042,74.36002171,134.88,134.87,81.67823112]
[1741522322237,74.36002171,134.88,134.87,81.73145476]
[1741522322542,6.87e-05,134.89,134.88,7.4153]
[1741522322847,3.9071,134.98,134.88,1.36149137]
[1741522323038,74.36002171,134.94,134.93,7.4125]
[1741522323240,74.36002171,134.94,134.89,43.78]
[1741522323440,74.36002171,134.93,134.89,43.78]
[1741522323645,74.36002171,134.93,134.92,7.4131]
[1741522323846,3.9071,134.98,134.89,43.78]
[1741522324041,0.04425469,134.94,134.91,0.05705311]
[1741522324242,0.04425469,134.94,134.92,62.0]
[1741522324446,74.36002171,134.93,134.92,62.0]
[1741522324645,74.36002171,134.93,134.92,69.4129]
[1741522324839,0.04425469,134.94,134.92,62.0]
[1741522325240,5.469e-05,134.94,134.93,7.4125]
[1741522326540,5.469e-05,134.94,134.93,8.77352339]
[1741522327045,5.469e-05,134.94,134.93,12.47352339]
[1741522327248,5.469e-05,134.94,134.93,8.77352339]
[1741522327447,5.469e-05,134.94,134.93,7.4125]
[1741522327843,5.469e-05,134.94,134.93,8.77357205]
[1741522328345,5.469e-05,134.94,134.93,70.77357205]
[1741522330447,107.26093002,135.12,135.07,7.4048]
[1741522330646,3.8744,135.1,135.07,7.4048]
[1741522330847,74.36002171,135.08,135.07,7.4048]
[1741522331051,104.96966862,135.08,135.07,7.4048]
[1741522331251,95.29034088,135.08,135.07,7.4048]
[1741522331445,89.23989937,135.08,135.07,7.4048]
[1741522331645,3.8744,135.1,135.06,0.05549912]
[1741522331844,74.36002171,135.08,135.07,7.4049]
[1741522332049,74.36002171,135.09,135.06,0.05549912]
[1741522332449,2.0283,135.14,135.06,0.05549912]
[1741522332647,74.36002171,135.1,135.06,0.05549912]
[1741522332949,74.36002171,135.09,135.08,7.404]
[1741522333150,74.36002171,135.1,135.06,0.05549912]
[1741522333651,74.36002171,135.07,135.06,62.05549912]
[1741522334153,89.23989937,135.07,135.06,0.05549912]
[1741522335644,89.23989937,135.07,135.03,222.22]
[1741522335850,74.36002171,135.04,135.03,229.6269]
[1741522336152,14.87987766,135.07,135.03,222.22]
[1741522336357,74.36002171,135.05,135.03,222.22]
[1741522336654,74.36002171,135.04,134.97,222.16]
[1741522336857,74.36002171,135.0,134.97,222.16]
[1741522337046,74.36002171,135.0,134.99,7.45805028]
[1741522337250,0.05251701,135.0,134.99,0.04885028]
[1741522337456,1.701e-05,135.0,134.99,7.45805028]
[1741522337855,1.701e-05,135.0,134.99,49.99805028]
[1741522341754,1.701e-05,135.0,134.99,111.99805028]
[1741522343053,1.701e-05,135.0,134.99,69.45805028]
[1741522345361,1.701e-05,135.0,134.99,70.81851011]
[1741522347262,1.701e-05,135.0,134.99,98.69721011]
[1741522347561,1.701e-05,135.0,134.99,72.77721011]
[1741522347953,1.701e-05,135.0,134.99,72.77716559]
[1741522348160,1.701e-05,135.0,134.99,70.81846559]
[1741522348359,1.701e-05,135.0,134.99,332.97805028]
[1741522349059,1.701e-05,135.0,134.99,291.57805028]
[1741522351650,1.701e-05,135.0,134.99,292.93853237]
[1741522351860,1.701e-05,135.0,134.99,315.15853237]
[1741522352856,1.701e-05,135.0,134.99,320.34012359]
[1741522353068,1.701e-05,135.0,134.99,510.64012359]
[1741522353258,2.0354,135.1,135.09,7.4038]
[1741522353462,16.91527766,135.1,135.09,7.4038]
[1741522353755,91.27529937,135.1,135.09,7.4038]
[1741522354963,193.0,135.19,135.16,7.3997]
[1741522355162,1.961,135.17,135.16,7.3997]
[1741522355356,1.961,135.17,135.1,40.68]
[1741522355662,5.661,135.17,135.08,222.12]
[1741522355858,1.961,135.17,135.03,194.0]
[1741522356063,209.45585249,135.16,135.06,7.405]
[1741522356265,46.51656021,135.15,135.04,222.1]
[1741522356557,40.76,135.15,135.04,222.1]
[1741522356763,0.04835676,135.11,135.08,0.05155197]
[1741522357267,0.04835676,135.11,135.09,7.4033]
[1741522357557,0.04835676,135.11,135.08,0.05155197]
[1741522357763,0.04835676,135.11,135.1,7.4032]
[1741522359972,5.676e-05,135.11,135.1,7.4032]
[1741522363666,5.676e-05,135.11,135.1,47.4432]
[1741522364064,2.0814,135.21,135.16,7.3995]
[1741522364270,4.0649,135.2,135.16,7.3995]
[1741522364470,4.0649,135.2,135.15,222.04]
[1741522365165,4.0649,135.2,135.16,0.04897468]
[1741522366067,7.3983,135.19,135.16,0.04897468]
[1741522366271,4.0649,135.2,135.16,0.04897468]
[1741522366668,39.8,135.19,135.08,62.0]
[1741522366875,39.8,135.19,135.09,261.82]
[1741522367174,47.1985,135.19,135.15,7.4]
[1741522367568,39.8,135.19,135.09,261.82]
[1741522367874,0.05001797,135.18,135.1,222.02]
[1741522368061,0.05001797,135.18,135.13,0.04902169]
[1741522368671,19.44914395,135.29,135.13,39.66902169]
[1741522368967,19.44914395,135.29,135.22,7.3965]
[1741522368968,7.394,135.27,135.22,7.3965]
[1741522369167,1.9173,135.26,135.22,7.3965]
[1741522369570,1.9173,135.26,135.21,261.88]
[1741522369763,1.9173,135.26,135.23,0.05206061]
[1741522370173,1.9173,135.26,135.24,7.3952]
[1741522371469,1.9173,135.26,135.23,0.05206061]
[1741522371771,1.9173,135.26,135.21,218.8986]
[1741522371973,2.0684,135.25,135.21,218.8986]
[1741522372872,0.04791758,135.24,135.22,0.05535042]
[1741522373176,0.04791758,135.24,135.22,7.45185042]
[1741522373473,0.04791758,135.24,135.22,0.05535042]
[1741522373673,0.04791758,135.24,135.22,7.45195042]
[1741522374572,0.04791758,135.24,135.23,7.3961]
[1741522374974,0.04791758,135.24,135.22,0.05535042]
[1741522376189,0.04791758,135.24,135.23,7.3961]
[1741522376578,0.04791758,135.24,135.22,0.05535042]
[1741522376780,0.04791758,135.24,135.21,215.83335042]
[1741522377276,39.1,135.23,135.15,221.92]
[1741522377781,46.4963,135.23,135.17,7.3989]
[1741522377979,0.05211257,135.2,135.15,221.92]
[1741522378874,0.05211257,135.2,135.17,7.399]
[1741522379470,0.05211257,135.2,135.16,0.05028684]
[1741522379471,0.05211257,135.2,135.18,7.3988]
[1741522379680,0.05211257,135.2,135.18,4.2787]
[1741522380277,0.05211257,135.2,135.19,7.3983]
[1741522380781,0.05211257,135.2,135.16,0.05028684]
[1741522381477,0.05211257,135.2,135.19,7.3983]
[1741522382288,233.5823,135.31,135.17,38.66]
[1741522382487,193.0,135.3,135.17,38.66]
[1741522382878,5.80610597,135.29,135.18,62.0]
[1741522383184,9.3188,135.29,135.18,62.0]
[1741522383382,0.05079355,135.25,135.24,7.3952]
[1741522383584,1.9257,135.29,135.21,38.62]
[1741522383785,0.05623342,135.26,135.23,0.05684095]
[1741522383985,0.05623342,135.26,135.24,221.92]
[1741522385485,0.05623342,135.26,135.24,229.3151]
[1741522385985,0.05623342,135.26,135.24,221.92]
[1741522387783,38.28,135.25,135.17,221.86]
[1741522388082,7.3964,135.23,135.18,7.3985]
[1741522388484,38.28,135.25,135.18,7.3985]
[1741522388685,7.3965,135.23,135.19,7.3983]
[1741522388983,7.44713726,135.23,135.2,0.05239182]
[1741522389382,7.3979,135.2,135.17,229.2592]
[1741522389776,193.0,135.24,135.17,221.86]
[1741522390186,7.3973,135.21,135.17,229.2591]
[1741522390684,0.04770688,135.2,135.18,0.05239023]
[1741522391089,0.04770688,135.2,135.19,7.3983]
[1741522391286,0.04770688,135.2,135.18,0.05239023]
[1741522391977,0.04770688,135.2,135.19,7.3983]
[1741522392178,0.04770688,135.2,135.18,0.05239023]
[1741522396283,0.04770688,135.2,135.19,7.3983]
[1741522396794,39.5962,135.28,135.18,0.05239023]
[1741522396989,39.5962,135.28,135.18,3.9115]
[1741522397385,7.3948,135.26,135.18,3.9115]
[1741522397785,7.3948,135.26,135.21,7.3968]
[1741522397986,39.5962,135.28,135.21,0.0534372]
[1741522397987,0.04922903,135.23,135.21,0.0534372]
[1741522398185,39.5962,135.28,135.21,0.0534372]
[1741522398395,0.04750401,135.23,135.21,0.0534372]
[1741522398594,39.5962,135.28,135.21,0.0534372]
[1741522398787,0.05627909,135.23,135.21,0.0534372]
[1741522398985,0.05175098,135.23,135.22,7.3966]
[1741522399290,5.83815441,135.27,135.21,99.4534372]
[1741522399488,7.3935,135.28,135.23,7.3956]
[1741522399889,7.393,135.29,135.22,1.9657]
[1741522400188,5.8408122,135.28,135.22,1.9657]
[1741522400491,0.05334717,135.26,135.24,0.05222307]
[1741522401692,0.05334717,135.26,135.18,3.9115]
[1741522402088,7.44814717,135.26,135.2,7.3974]
[1741522402285,5.84200109,135.25,135.18,3.9115]
[1741522402688,0.04763562,135.23,135.2,0.0479401]
[1741522403092,0.04763562,135.23,135.2,7.4453401]
[1741522403493,0.04763562,135.23,135.2,0.0479401]
[1741522403688,7.3972,135.21,135.2,0.0479401]
[1741522404087,37.08763562,135.23,135.2,0.0479401]
[1741522404294,37.08763562,135.23,135.2,7.4454401]
[1741522404486,37.08763562,135.23,135.2,0.0479401]
[1741522404796,0.04763562,135.23,135.22,7.3966]
[1741522405089,0.04763562,135.23,135.2,0.0479401]
[1741522405286,7.44393562,135.23,135.2,0.0479401]
[1741522405487,0.04763562,135.23,135.2,0.0479401]
[1741522407298,7.44383562,135.23,135.2,0.0479401]
[1741522407493,0.04763562,135.23,135.2,0.0479401]
[1741522409594,7.3969,135.22,135.2,0.0479401]
[1741522409993,7.3972,135.21,135.2,0.0479401]
[1741522410193,0.04763562,135.23,135.2,0.0479401]
[1741522410499,36.56,135.22,135.2,0.0479401]
[1741522410693,0.04763562,135.23,135.2,0.0479401]
[1741522411092,0.04763562,135.23,135.22,7.3966]
[1741522411996,0.04763562,135.23,135.21,7.397]
[1741522412193,0.04763562,135.23,135.2,0.0479401]
[1741522412596,0.04763562,135.23,135.21,7.3969]
[1741522413193,0.04763562,135.23,135.2,0.0479401]
[1741522413794,0.04763562,135.23,135.22,7.3966]
[1741522414099,36.32,135.29,135.21,6.8757]
[1741522414298,43.713,135.29,135.24,7.395]
[1741522414497,5.86312916,135.28,135.24,7.395]
[1741522415191,5.91067795,135.27,135.25,0.05385831]
[1741522415501,5.86312916,135.26,135.25,0.05385831]
[1741522416395,5.86312916,135.26,135.25,7.44885831]
[1741522417003,5.86312916,135.26,135.25,0.05385831]
[1741522418300,5.86312916,135.26,135.17,229.2591]
[1741522418301,7.3969,135.22,135.17,229.2591]
[1741522418500,228.98,135.25,135.17,229.2591]
[1741522418815,7.3967,135.22,135.17,229.2591]
[1741522418998,7.3967,135.22,135.18,7.3983]
[1741522419195,5.86164036,135.21,135.18,7.3983]
[1741522419394,5.91819828,135.21,135.19,0.05449275]
[1741522419604,5.86164036,135.2,135.19,7.45279275]
[1741522420006,5.86164036,135.2,135.19,0.05449275]
[1741522420610,234.70164036,135.2,135.19,0.05449275]
[1741522420809,239.33440783,135.2,135.19,0.05449275]
[1741522421013,193.0,135.19,135.11,81.67823112]
[1741522421204,197.63141475,135.18,135.11,81.67823112]
[1741522421406,193.0,135.18,135.05,303.55823112]
[1741522421607,7.4005,135.16,135.09,7.4034]
[1741522421911,36.18,135.15,135.05,303.55823112]
[1741522422108,42.04164036,135.15,135.05,339.67823112]
[1741522422413,0.05462572,135.11,135.09,0.05474832]
[1741522423914,7.45762572,135.11,135.09,0.05474832]
[1741522424115,228.98,135.1,135.05,221.88]
[1741522424813,5.83411649,135.09,135.05,221.88]
[1741522425318,193.0,135.1,135.06,0.05111241]
[1741522425506,193.0,135.1,135.07,7.4045]
[1741522425710,193.0,135.1,135.06,0.05111241]
[1741522425912,193.0,135.1,135.06,2.44941241]
[1741522428114,193.0,135.1,135.06,0.05111241]
[1741522428712,200.4036,135.1,135.06,0.05111241]
[1741522428912,193.0,135.1,135.06,0.05111241]
[1741522430515,7.4041,135.09,135.06,0.05111241]
[1741522431618,7.4041,135.09,135.01,37.9376]
[1741522431619,193.0,135.1,135.01,35.56]
[1741522431913,193.0,135.1,135.01,37.9508]
[1741522432112,7.4001,135.16,135.02,1.36022672]
[1741522432310,228.68,135.17,135.02,1.36022672]
[1741522432612,228.68,135.17,135.01,2.3908]
[1741522432817,0.05356474,135.11,135.08,0.04817372]
[1741522433013,193.0,135.1,135.08,0.04817372]
[1741522433228,193.04805486,135.1,135.08,0.05118713]
[1741522434223,193.04805486,135.1,135.09,7.4038]
[1741522435015,0.04805486,135.1,135.09,7.4038]
[1741522435321,193.0,135.17,135.15,7.4004]
[1741522435921,193.0,135.17,135.16,7.3999]
[1741522436130,2.0708,135.24,135.1,35.5]
[1741522436131,193.0,135.23,135.1,35.5]
[1741522436328,0.0491064,135.18,135.15,0.04664729]
[1741522436519,0.0491064,135.18,135.17,7.3989]
[1741522438126,0.0491064,135.18,135.15,231.85744729]
[1741522438329,0.0491064,135.18,135.15,222.10664729]
[1741522439832,0.0491064,135.18,135.15,229.50704729]
[1741522440027,0.0491064,135.18,135.15,222.10664729]
[1741522440630,0.0491064,135.18,135.16,7.3998]
[1741522441133,0.0491064,135.18,135.17,7.3994]
[1741522441434,0.0491064,135.18,135.15,222.10664729]
[1741522441628,0.0491064,135.18,135.17,7.3994]
[1741522442734,0.0491064,135.18,135.15,229.50694729]
[1741522443033,0.0491064,135.18,135.15,222.10664729]
[1741522443332,0.0491064,135.18,135.16,7.3999]
[1741522443837,0.0491064,135.18,135.15,222.10664729]
[1741522444536,0.0491064,135.18,135.15,229.50714729]
[1741522444734,7.3998,135.17,135.15,222.10664729]
[1741522444937,193.0,135.16,135.09,2.2808]
[1741522445233,7.4009,135.15,135.09,2.2808]
[1741522445736,227.86,135.16,135.09,2.2808]
[1741522446127,0.05077051,135.14,135.11,0.05681179]
[1741522446333,7.4021,135.12,135.11,0.05681179]
[1741522447137,0.05077051,135.14,135.11,0.05681179]
[1741522448338,7.45187051,135.14,135.11,7.45911179]
[1741522448633,0.05077051,135.14,135.11,7.45911179]
[1741522448836,0.05077051,135.14,135.12,7.402]
[1741522449040,0.05077051,135.14,135.11,0.05681179]
[1741522449839,7.45197051,135.14,135.11,0.05681179]
[1741522450035,0.05077051,135.14,135.11,0.05681179]
[1741522450535,7.4016,135.13,135.11,0.05681179]
[1741522450837,0.05077051,135.14,135.11,0.05681179]
[1741522451533,7.45207051,135.14,135.11,0.05681179]
[1741522451738,0.05077051,135.14,135.11,0.05681179]
[1741522452134,0.05077051,135.14,135.11,7.45911179]
[1741522453141,0.05077051,135.14,135.11,0.05681179]
[1741522453345,0.05077051,135.14,135.12,7.4021]
[1741522453542,0.05077051,135.14,135.11,0.05681179]
[1741522453844,0.05077051,135.14,135.13,7.4016]
[1741522454843,193.0,135.23,135.11,0.05681179]
[1741522455139,193.0,135.22,135.1,34.5]
[1741522455442,34.32,135.21,135.14,7.4007]
[1741522455645,5.81728972,135.2,135.1,34.5]
[1741522455838,5.81728972,135.2,135.15,222.02]
[1741522456047,5.81728972,135.2,135.19,7.3983]
[1741522456246,46.1017,135.25,135.16,2.4041]
[1741522456436,0.05651286,135.21,135.18,0.0564418]
[1741522456946,0.05651286,135.21,135.19,7.398]
[1741522457149,0.05651286,135.21,135.18,0.0564418]
[1741522457642,0.05651286,135.21,135.2,7.3977]
[1741522457840,29.71397665,135.26,135.19,34.2]
[1741522458246,11.8889,135.3,135.24,7.3951]
[1741522458948,5.82270935,135.29,135.26,0.05628065]
[1741522459148,0.05028674,135.28,135.23,256.14]
[1741522459352,300.26093002,135.31,135.28,7.393]
[1741522459644,107.26093002,135.31,135.28,7.393]
[1741522459849,107.31491478,135.31,135.3,7.3923]
[1741522460548,107.31491478,135.31,135.29,0.05527595]
[1741522460943,0.05398476,135.31,135.29,0.05527595]
[1741522461849,0.05398476,135.31,135.3,7.3923]
[1741522462554,34.08,135.37,135.29,0.05527595]
[1741522463144,37.10237665,135.38,135.29,0.05527595]
[1741522463350,29.71397665,135.38,135.28,2.4236]
[1741522463649,29.71397665,135.38,135.32,0.04798209]
[1741522463852,0.05651538,135.34,135.32,0.04798209]
[1741522464947,33.86,135.33,135.24,4.5649]
[1741522465362,33.86,135.33,135.26,7.3943]
[1741522465557,33.86,135.33,135.24,4.5649]
[1741522465743,33.86,135.33,135.25,33.88]
[1741522466150,0.05291149,135.3,135.28,0.04868138]
[1741522466357,0.05291149,135.3,135.29,7.3928]
[1741522467846,0.05291149,135.3,135.29,69.3928]
[1741522468149,0.05291149,135.3,135.28,0.04868138]
[1741522468761,7.3928,135.29,135.28,0.04868138]
[1741522469472,33.7,135.29,135.08,185.26047851]
[1741522469647,33.7,135.29,135.16,263.82768403]
[1741522469860,193.0,135.28,135.16,6.9689]
[1741522470054,7.396,135.24,135.19,7.3981]
[1741522470653,7.3964,135.23,135.18,7.3988]
[1741522470863,0.05062001,135.23,135.2,0.04769866]
[1741522472160,7.3967,135.22,135.2,0.04769866]
[1741522472661,40.9772,135.21,135.2,0.04769866]
[1741522473661,193.0,135.2,135.08,1.28733931]
[1741522473959,193.0,135.19,135.08,7.4039]
[1741522474256,7.4014,135.14,135.03,260.0252]
[1741522474461,33.72,135.13,135.03,260.0252]
[1741522474658,33.72,135.13,135.06,7.4054]
[1741522474965,0.04690667,135.09,135.07,0.0511883]
[1741522475163,0.04690667,135.09,135.07,33.7111883]
[1741522475462,33.66,135.16,135.08,2.3122]
[1741522476464,0.04957253,135.13,135.11,0.04865861]
[1741522477753,0.04957253,135.13,135.03,221.82]
[1741522477754,33.54,135.12,135.03,221.82]
[1741522478554,33.54,135.12,135.03,255.64]
[1741522478758,33.54,135.12,135.04,62.0]
[1741522478957,0.0568356,135.09,135.06,0.05386318]
[1741522479156,0.0568356,135.09,135.07,7.4045]
[1741522480166,0.0568356,135.09,135.08,7.4043]
[1741522480968,0.0568356,135.09,135.07,7.4045]
[1741522481269,0.0568356,135.09,135.06,0.05386318]
[1741522481759,193.0,135.25,135.07,33.66]
[1741522481974,198.79496998,135.24,135.08,6.08033535]
[1741522482264,198.79496998,135.24,135.08,4.7207]
[1741522482668,5.79496998,135.23,135.08,4.7207]
[1741522482859,193.0,135.22,135.15,0.05483799]
[1741522483063,33.76,135.21,135.15,0.05483799]
[1741522483260,0.05675486,135.2,135.15,0.05483799]
[1741522483469,0.05675486,135.2,135.17,7.3989]
[1741522484975,0.05675486,135.2,135.15,62.05483799]
[1741522485578,0.05675486,135.2,135.19,7.3983]
[1741522486582,0.05675486,135.2,135.18,7.44882591]
[1741522486785,0.05675486,135.2,135.18,0.05012591]
[1741522487878,33.54,135.19,135.18,0.05012591]
[1741522488069,33.54,135.19,135.14,221.98]
[1741522489180,7.3999,135.16,135.15,0.05411259]
[1741522489481,193.0,135.18,135.07,221.94]
[1741522489682,231.05464984,135.17,135.01,221.96]
[1741522489883,226.9,135.16,135.04,7.4064]
[1741522490077,230.3502,135.15,135.02,2.2349]
[1741522490277,7.403,135.11,135.06,7.405]
[1741522490478,0.05302028,135.1,135.07,0.05130915]
[1741522490877,0.05302028,135.1,135.07,7.45600915]
[1741522491082,0.05302028,135.1,135.07,0.05130915]
[1741522491482,0.05302028,135.1,135.07,7.45600915]
[1741522491877,0.05302028,135.1,135.07,0.05130915]
[1741522494788,0.05302028,135.1,135.08,7.4039]
[1741522495281,0.05302028,135.1,135.07,0.05130915]
[1741522496190,7.45672028,135.1,135.07,0.05130915]
[1741522496386,0.05302028,135.1,135.07,0.05130915]
[1741522496886,7.4043,135.08,135.07,0.05130915]
[1741522499389,40.8643,135.08,135.07,0.05130915]
[1741522499984,33.46,135.08,135.07,0.05130915]
[1741522501291,0.05302028,135.1,135.07,0.05130915]
[1741522501798,7.45652028,135.1,135.07,0.05130915]
[1741522501992,0.05302028,135.1,135.07,0.05130915]
[1741522502195,7.4043,135.08,135.07,0.05130915]
[1741522502389,0.05302028,135.1,135.07,0.05130915]
[1741522504399,196.4502,135.15,135.12,7.4017]
[1741522504400,193.0,135.15,135.12,7.4017]
[1741522504585,2.2732,135.19,135.1,222.1]
[1741522504785,65.18357665,135.2,135.11,222.1]
[1741522505392,62.99397665,135.2,135.11,222.1]
[1741522505594,0.04925198,135.17,135.14,0.04944089]
[1741522505989,0.04925198,135.17,135.16,7.3999]
[1741522506798,29.71397665,135.2,135.14,0.04944089]
[1741522506998,37.11187665,135.2,135.14,0.04944089]
[1741522507196,29.71397665,135.2,135.14,0.04944089]
[1741522507396,29.71397665,135.2,135.14,7.45004089]
[1741522507801,77.54695337,135.21,135.14,7.45004089]
[1741522507802,33.24,135.22,135.14,0.04944089]
[1741522507998,0.05354362,135.18,135.14,0.04944089]
[1741522508399,33.24,135.22,135.14,0.04944089]
[1741522508601,7.3976,135.21,135.14,0.04944089]
[1741522508791,33.24,135.22,135.14,0.04944089]
[1741522509202,7.3982,135.2,135.15,7.4001]
[1741522509398,33.24,135.22,135.08,4.6246]
[1741522509594,0.05149864,135.19,135.16,0.04818996]
[1741522510096,7.3994,135.17,135.16,0.04818996]
[1741522510296,33.1,135.18,135.16,0.04818996]
[1741522511801,7.3994,135.17,135.16,0.04818996]
[1741522512292,33.1,135.18,135.16,0.04818996]
[1741522512693,0.05149864,135.19,135.16,0.04818996]
[1741522513092,0.05149864,135.19,135.17,7.3994]
[1741522513403,0.05149864,135.19,135.16,0.04818996]
[1741522514107,0.05149864,135.19,135.16,7.44778996]
[1741522514302,7.3989,135.18,135.16,0.04818996]
[1741522514603,0.05149864,135.19,135.16,0.04818996]
[1741522514803,7.45009864,135.19,135.16,0.04818996]
[1741522515111,0.05149864,135.19,135.16,0.04818996]
[1741522515504,0.05149864,135.19,135.16,7.44798996]
[1741522515704,0.05149864,135.19,135.16,0.04818996]
[1741522516700,13.22771395,135.18,135.16,0.04818996]
[1741522516897,5.82891395,135.18,135.16,0.04818996]
[1741522517100,5.82891395,135.17,135.16,0.04818996]
[1741522517307,13.22831395,135.17,135.16,0.04818996]
[1741522518020,5.82891395,135.17,135.16,0.04818996]
[1741522519101,5.82891395,135.17,135.16,7.44808996]
[1741522519501,0.05149864,135.19,135.16,0.04818996]
[1741522520305,0.05149864,135.19,135.17,7.3993]
[1741522521409,7.3994,135.17,135.16,0.04818996]
[1741522521603,40.1394,135.17,135.16,0.04818996]
[1741522521802,45.97202921,135.17,135.16,0.04818996]
[1741522523007,38.57262921,135.17,135.1,222.06]
[1741522523604,7.4031,135.11,135.09,2.4122]
[1741522523799,32.64,135.13,135.05,222.0]
[1741522524003,32.64,135.13,135.04,222.0]
[1741522524204,0.05179366,135.1,135.08,0.05338947]
[1741522524604,0.05179366,135.1,135.09,7.4038]
[1741522524907,0.05179366,135.1,135.08,0.05338947]
[1741522525711,0.05179366,135.1,135.09,7.4038]
[1741522525907,32.62,135.16,135.09,7.4038]
[1741522526113,7.4014,135.14,135.09,7.4038]
[1741522526310,32.62,135.16,135.07,35.0763]
[1741522526514,5.83057644,135.15,135.08,7.4041]
[1741522526707,5.83057644,135.15,135.07,35.0763]
[1741522526903,0.04930367,135.12,135.1,0.04968174]
[1741522530315,0.04930367,135.12,135.1,222.06968174]
[1741522530813,0.04930367,135.12,135.1,229.47248174]
[1741522531018,0.04930367,135.12,135.1,222.06968174]
[1741522532117,0.04930367,135.12,135.1,229.47278174]
[1741522532814,0.04930367,135.12,135.11,7.4027]
[1741522533216,40.0201,135.16,135.1,222.06968174]
[1741522533416,32.62,135.16,135.1,222.06968174]
[1741522533921,32.3,135.18,135.1,222.06968174]
[1741522534222,0.05259218,135.15,135.1,222.02]
[1741522534418,0.05259218,135.15,135.14,7.4005]
[1741522535421,7.399,135.18,135.15,7.4004]
[1741522535614,32.22,135.2,135.13,0.05447155]
[1741522535822,7.4009,135.15,135.13,0.05447155]
[1741522536019,5.84661354,135.19,135.13,0.05447155]
[1741522536218,4.61942421,135.18,135.13,0.05447155]
[1741522536417,7.401,135.14,135.13,0.05447155]
[1741522537719,13.24761354,135.14,135.13,0.05447155]
[1741522538321,5.84661354,135.14,135.13,0.05447155]
[1741522539627,0.05357988,135.17,135.13,0.05447155]
[1741522539628,7.45297988,135.17,135.13,0.05447155]
[1741522539831,0.05357988,135.17,135.13,0.05447155]
[1741522540128,7.4002,135.16,135.13,0.05447155]
[1741522541526,7.45327988,135.17,135.13,7.45597155]
[1741522541928,7.401,135.14,135.13,0.05447155]
[1741522542122,36.84366218,135.14,135.04,222.02]
[1741522542425,5.85122415,135.13,135.04,222.02]
[1741522542817,10.476539,135.12,135.04,222.02]
[1741522543023,4.62531485,135.11,135.04,222.02]
[1741522543227,0.05040802,135.09,135.07,0.05090532]
[1741522543929,5.85122415,135.08,135.07,0.05090532]
[1741522544119,13.25552415,135.08,135.07,5.32e-06]
[1741522544323,21.57834074,135.08,135.07,5.32e-06]